fUSD/lending_fUSD_20260507
["ID","MTS","AMOUNT","RATE_DAILY","PERIOD"]
[421755499,1778107835000,-544.0,0.0003222,30]
[421755511,1778107835000,-152.0,0.00032891,6]
[421755513,1778107835000,-163.95555128,0.00033,120]
[421755512,1778107835000,-1286.13751626,0.00033,120]
[421755510,1778107835000,-653.0,0.00032828,30]
[421755514,1778107835000,-1006.34383222,0.00033,120]
[421755515,1778107835000,-198.59099089,0.00033,120]
[421755516,1778107835000,-1380.7098071,0.00033,120]
[421755517,1778107835000,-323.79579319,0.00033,120]
[421755518,1778107835000,-169.23527008,0.00033,120]
[421755520,1778107835000,-156.0,0.00033219,30]
[421755474,1778107835000,-539.0,0.00031235,30]
[421755532,1778107835000,-254.44,0.000334,30]
[421755521,1778107835000,-153.0,0.00033219,30]
[421755519,1778107835000,-165.0,0.00033,14]
[421755531,1778107835000,-4000.0,0.00033397,60]
[421755523,1778107835000,-544.0,0.0003322,30]
[421755524,1778107835000,-253.0,0.00033235,30]
[421755528,1778107835000,-539.0,0.00033235,30]
[421755525,1778107835000,-153.0,0.00033235,30]
[421755526,1778107835000,-166.0,0.00033235,30]
[421755522,1778107835000,-166.0,0.00033219,30]
[421755529,1778107835000,-567.892534,0.00033298,120]
[421755527,1778107835000,-201.0,0.00033235,30]
[421755533,1778107835000,-166.33865363,0.00033423,2]
[421755500,1778107835000,-253.0,0.00032235,30]
[421755503,1778107835000,-201.0,0.00032235,30]
[421755530,1778107835000,-502.0,0.00033304,8]
[421755508,1778107835000,-727.0,0.00032828,30]
[421755534,1778107835000,-18760.55878155,0.00033423,2]
[421755476,1778107835000,-152.0,0.00031486,5]
[421755483,1778107835000,-417.0,0.00031696,2]
[421755484,1778107835000,-321.64,0.00031798,120]
[421755480,1778107835000,-925.0,0.00031696,2]
[421755485,1778107835000,-1286.13751626,0.00032,120]
[421755493,1778107835000,-169.23527008,0.00032,120]
[421755487,1778107835000,-1006.34383222,0.00032,120]
[421755494,1778107835000,-274.4,0.0003221,5]
[421755486,1778107835000,-163.95555128,0.00032,120]
[421755495,1778107835000,-156.0,0.00032219,30]
[421755497,1778107835000,-166.0,0.00032219,30]
[421755496,1778107835000,-153.0,0.00032219,30]
[421755491,1778107835000,-301.91643065,0.00032,120]
[421755505,1778107835000,-476.63988712,0.0003238,2]
[421755490,1778107835000,-323.79579319,0.00032,120]
[421755501,1778107835000,-153.0,0.00032235,30]
[421755507,1778107835000,-150.0,0.00032562,2]
[421755498,1778107835000,-157.4113931,0.00032219,30]
[421755509,1778107835000,-392.0,0.00032828,30]
[421755502,1778107835000,-166.0,0.00032235,30]
[421755506,1778107835000,-502.0,0.00032423,7]
[421755492,1778107835000,-254.81702264,0.00032,120]
[421755488,1778107835000,-198.59099089,0.00032,120]
[421755489,1778107835000,-1380.7098071,0.00032,120]
[421755504,1778107835000,-539.0,0.00032235,30]
[421755555,1778107838000,-4381.36191852,0.00033423,2]
[421755557,1778107838000,-666.0,0.00033423,30]
[421755553,1778107838000,-803.1,0.00030704,2]
[421755556,1778107838000,-13048.7406463,0.00033423,2]
[421755552,1778107838000,-158.71,0.00028852,7]
[421755569,1778107838000,-550.0,0.00033909,2]
[421755560,1778107838000,-1286.13751626,0.000339,120]
[421755559,1778107838000,-782.0,0.00033423,30]
[421755568,1778107838000,-550.0,0.00033909,2]
[421755572,1778107838000,-550.0,0.00033909,2]
[421755558,1778107838000,-327.0,0.00033423,30]
[421755554,1778107838000,-3625.0,0.00031696,2]
[421755551,1778107838000,-158.71,0.0002882,2]
[421755538,1778107838000,-1757.08759166,0.00025277,2]
[421755547,1778107838000,-3625.0,0.00028696,2]
[421755548,1778107838000,-158.71,0.00028725,2]
[421755550,1778107838000,-158.71,0.00028788,30]
[421755546,1778107838000,-158.71,0.00028693,30]
[421755545,1778107838000,-158.71,0.00028661,7]
[421755544,1778107838000,-158.71,0.0002863,2]
[421755543,1778107838000,-500.0,0.00025709,2]
[421755541,1778107838000,-8446.62698221,0.00025277,2]
[421755542,1778107838000,-3625.0,0.00025696,2]
[421755539,1778107838000,-289.11111019,0.00025277,2]
[421755540,1778107838000,-1466.38808259,0.00025277,2]
[421755537,1778107838000,-500.0,0.00013698,2]
[421755549,1778107838000,-158.71,0.00028756,7]
[421755565,1778107838000,-323.79579319,0.000339,120]
[421755571,1778107838000,-550.0,0.00033909,2]
[421755566,1778107838000,-550.0,0.00033909,2]
[421755563,1778107838000,-198.59099089,0.000339,120]
[421755591,1778107838000,-214.60306816,0.00034,30]
[421755592,1778107838000,-6360.33914727,0.00034044,2]
[421755590,1778107838000,-408.0,0.00033991,2]
[421755588,1778107838000,-600.8202867,0.0003398,60]
[421755583,1778107838000,-750.0,0.00033963,2]
[421755585,1778107838000,-380.3344272,0.0003398,60]
[421755586,1778107838000,-283.6996602,0.0003398,60]
[421755593,1778107838000,-844.22470888,0.00034044,2]
[421755589,1778107838000,-271.5036769,0.0003398,60]
[421755587,1778107838000,-165.784738,0.0003398,60]
[421755584,1778107838000,-421.0,0.00033963,2]
[421755582,1778107838000,-750.0,0.00033963,2]
[421755594,1778107838000,-326.53167166,0.00034047,2]
[421755581,1778107838000,-750.0,0.00033963,2]
[421755580,1778107838000,-750.0,0.00033963,2]
[421755562,1778107838000,-1006.34383222,0.000339,120]
[421755570,1778107838000,-550.0,0.00033909,2]
[421755564,1778107838000,-1380.7098071,0.000339,120]
[421755573,1778107838000,-550.0,0.00033909,2]
[421755567,1778107838000,-550.0,0.00033909,2]
[421755579,1778107838000,-750.0,0.00033963,2]
[421755575,1778107838000,-750.0,0.00033963,2]
[421755576,1778107838000,-750.0,0.00033963,2]
[421755561,1778107838000,-163.95555128,0.000339,120]
[421755577,1778107838000,-750.0,0.00033963,2]
[421755574,1778107838000,-664.0,0.00033909,2]
[421755578,1778107838000,-750.0,0.00033963,2]
[421755625,1778107840000,-156.0,0.00034208,2]
[421755643,1778107840000,-408.0,0.0003437,2]
[421755624,1778107840000,-227.0,0.00034208,2]
[421755631,1778107840000,-253.0,0.00034235,30]
[421755628,1778107840000,-159.00190912,0.00034219,30]
[421755627,1778107840000,-156.0,0.00034219,30]
[421755629,1778107840000,-166.0,0.00034219,30]
[421755626,1778107840000,-408.0,0.00034214,2]
[421755632,1778107840000,-153.0,0.00034235,30]
[421755633,1778107840000,-166.0,0.00034235,30]
[421755630,1778107840000,-544.0,0.0003422,30]
[421755642,1778107840000,-408.0,0.00034346,2]
[421755634,1778107840000,-201.0,0.00034235,30]
[421755644,1778107840000,-4000.0,0.00034438,60]
[421755635,1778107840000,-539.0,0.00034235,30]
[421755639,1778107840000,-152.0,0.00034296,7]
[421755641,1778107840000,-408.0,0.00034322,2]
[421755640,1778107840000,-206.62262661,0.000343,120]
[421755637,1778107840000,-408.0,0.00034248,2]
[421755638,1778107840000,-408.0,0.00034249,2]
[421755646,1778107840000,-165.0,0.00034521,30]
[421755648,1778107840000,-328.752,0.00034696,2]
[421755622,1778107840000,-408.0,0.00034201,2]
[421755636,1778107840000,-408.0,0.00034239,2]
[421755621,1778107840000,-408.0,0.000342,2]
[421755610,1778107840000,-286.0,0.00034082,2]
[421755620,1778107840000,-150.0,0.0003419,2]
[421755645,1778107840000,-1885.06854802,0.00034465,7]
[421755598,1778107840000,-158.71,0.00028915,2]
[421755599,1778107840000,-158.71,0.00028947,7]
[421755597,1778107840000,-158.71,0.00028883,30]
[421755600,1778107840000,-158.71,0.00028979,30]
[421755604,1778107840000,-158.71,0.00029105,2]
[421755601,1778107840000,-158.71,0.0002901,2]
[421755603,1778107840000,-158.71,0.00029074,30]
[421755602,1778107840000,-158.71,0.00029042,7]
[421755605,1778107840000,-803.09,0.00032239,2]
[421755606,1778107840000,-81.46832834,0.00034047,2]
[421755609,1778107840000,-500.0,0.00034047,30]
[421755608,1778107840000,-94.23832834,0.00034047,30]
[421755607,1778107840000,-232.76167166,0.00034047,30]
[421755614,1778107840000,-408.0,0.00034155,2]
[421755613,1778107840000,-200.0,0.00034144,10]
[421755611,1778107840000,-5000.0,0.000341,2]
[421755612,1778107840000,-408.0,0.00034143,2]
[421755615,1778107840000,-408.0,0.00034174,2]
[421755616,1778107840000,-408.0,0.00034182,2]
[421755618,1778107840000,-173.025078,0.00034183,120]
[421755617,1778107840000,-274.4,0.00034182,7]
[421755619,1778107840000,-502.0,0.00034185,9]
[421755623,1778107840000,-408.0,0.00034208,2]
[421755656,1778107840000,-1447.47185528,0.00034795,2]
[421755667,1778107840000,-1000.0,0.00035,3]
[421755650,1778107840000,-417.0,0.00034696,2]
[421755671,1778107840000,-1500.0,0.000352,7]
[421755672,1778107840000,-156.0,0.00035219,30]
[421755674,1778107840000,-544.0,0.0003522,30]
[421755679,1778107840000,-539.0,0.00035235,30]
[421755684,1778107840000,-500.0,0.00035616,7]
[421755694,1778107840000,-531.59217627,0.00035616,7]
[421755683,1778107840000,-500.0,0.00035616,5]
[421755686,1778107840000,-500.0,0.00035616,7]
[421755696,1778107840000,-500.0,0.00035616,7]
[421755695,1778107840000,-500.0,0.00035616,7]
[421755685,1778107840000,-500.0,0.00035616,7]
[421755692,1778107840000,-500.0,0.00035616,7]
[421755693,1778107840000,-500.0,0.00035616,7]
[421755689,1778107840000,-500.0,0.00035616,7]
[421755691,1778107840000,-500.0,0.00035616,7]
[421755690,1778107840000,-500.0,0.00035616,7]
[421755698,1778107840000,-1000.0,0.00035616,10]
[421755701,1778107840000,-1000.0,0.00035616,10]
[421755702,1778107840000,-1000.0,0.00035616,10]
[421755699,1778107840000,-1000.0,0.00035616,10]
[421755700,1778107840000,-1000.0,0.00035616,10]
[421755697,1778107840000,-1000.0,0.00035616,10]
[421755647,1778107840000,-471.74887905,0.00034695,2]
[421755675,1778107840000,-253.0,0.00035235,30]
[421755673,1778107840000,-166.0,0.00035219,30]
[421755688,1778107840000,-500.0,0.00035616,7]
[421755676,1778107840000,-161.0,0.00035235,30]
[421755649,1778107840000,-925.0,0.00034696,2]
[421755677,1778107840000,-166.0,0.00035235,30]
[421755653,1778107840000,-25688.35,0.00034746,10]
[421755652,1778107840000,-324.37751906,0.00034706,7]
[421755655,1778107840000,-631.75654827,0.00034756,120]
[421755654,1778107840000,-15847.2472871,0.00034756,120]
[421755651,1778107840000,-2954.448,0.00034696,2]
[421755657,1778107840000,-4245.146,0.00034826,40]
[421755659,1778107840000,-1286.13751626,0.00035,120]
[421755663,1778107840000,-1380.7098071,0.00035,120]
[421755658,1778107840000,-327.262,0.00034826,40]
[421755662,1778107840000,-198.59099089,0.00035,120]
[421755661,1778107840000,-1006.34383222,0.00035,120]
[421755666,1778107840000,-180.273,0.00035,2]
[421755681,1778107840000,-4000.0,0.00035479,60]
[421755680,1778107840000,-402.62968383,0.00035411,2]
[421755669,1778107840000,-517.878718,0.00035,3]
[421755678,1778107840000,-201.0,0.00035235,30]
[421755670,1778107840000,-502.0,0.00035066,10]
[421755682,1778107840000,-591.9658418,0.00035492,5]
[421755660,1778107840000,-231.07,0.00035,2]
[421755664,1778107840000,-323.79579319,0.00035,120]
[421755703,1778107840000,-1000.0,0.00035616,10]
[421755668,1778107840000,-1000.0,0.00035,3]
[421755665,1778107840000,-150.0,0.00035,2]
[421755748,1778107841000,-231.35195899,0.00036056,7]
[421755743,1778107841000,-206.6226266,0.00036,120]
[421755742,1778107841000,-323.79579319,0.00036,120]
[421755746,1778107841000,-231.35195899,0.00036016,7]
[421755745,1778107841000,-214.60306816,0.00036,10]
[421755737,1778107841000,-150.0,0.00035975,7]
[421755739,1778107841000,-1006.34383222,0.00036,120]
[421755740,1778107841000,-198.59099089,0.00036,120]
[421755738,1778107841000,-1286.13751626,0.00036,120]
[421755741,1778107841000,-1380.7098071,0.00036,120]
[421755751,1778107841000,-150.0,0.00036086,7]
[421755744,1778107841000,-214.60306816,0.00036,7]
[421755758,1778107841000,-150.0,0.00036157,7]
[421755768,1778107841000,-243.87,0.00036221,2]
[421755747,1778107841000,-9003.4943434,0.00036038,2]
[421755750,1778107841000,-150.0,0.00036083,7]
[421755753,1778107841000,-150.0,0.00036123,7]
[421755752,1778107841000,-231.35195899,0.00036096,7]
[421755757,1778107841000,-274.4,0.00036153,30]
[421755756,1778107841000,-476.63988712,0.0003614,2]
[421755755,1778107841000,-231.35195899,0.00036137,7]
[421755754,1778107841000,-1163.59,0.00036124,10]
[421755759,1778107841000,-500.0,0.00036164,2]
[421755763,1778107841000,-150.0,0.00036197,7]
[421755770,1778107841000,-166.0,0.00036235,30]
[421755762,1778107841000,-150.0,0.00036191,7]
[421755736,1778107841000,-231.35195899,0.00035975,7]
[421755749,1778107841000,-150.0,0.00036066,7]
[421755733,1778107841000,-150.0,0.00035975,7]
[421755706,1778107841000,-1000.0,0.00035616,10]
[421755731,1778107841000,-150.0,0.00035975,7]
[421755709,1778107841000,-1000.0,0.00035616,10]
[421755705,1778107841000,-1000.0,0.00035616,10]
[421755707,1778107841000,-1000.0,0.00035616,10]
[421755708,1778107841000,-1000.0,0.00035616,10]
[421755704,1778107841000,-1000.0,0.00035616,10]
[421755760,1778107841000,-2749.0,0.00036164,2]
[421755711,1778107841000,-1000.0,0.00035616,10]
[421755710,1778107841000,-1000.0,0.00035616,10]
[421755712,1778107841000,-1000.0,0.00035616,10]
[421755714,1778107841000,-1000.0,0.00035616,10]
[421755722,1778107841000,-4265.0,0.00035838,15]
[421755721,1778107841000,-471.74887901,0.00035745,2]
[421755715,1778107841000,-1000.0,0.00035616,10]
[421755718,1778107841000,-1000.0,0.00035616,10]
[421755713,1778107841000,-417.0,0.00035616,10]
[421755716,1778107841000,-1000.0,0.00035616,10]
[421755717,1778107841000,-1000.0,0.00035616,10]
[421755719,1778107841000,-169.37,0.00035616,2]
[421755720,1778107841000,-152.0,0.00035701,8]
[421755724,1778107841000,-65202.6,0.000359,7]
[421755727,1778107841000,-150.0,0.00035975,30]
[421755734,1778107841000,-150.0,0.00035975,7]
[421755723,1778107841000,-150.0,0.00035899,2]
[421755725,1778107841000,-502.0,0.00035947,11]
[421755735,1778107841000,-150.0,0.00035975,7]
[421755726,1778107841000,-150.0,0.00035975,7]
[421755729,1778107841000,-150.0,0.00035975,7]
[421755732,1778107841000,-150.0,0.00035975,7]
[421755730,1778107841000,-150.49474749,0.00035975,7]
[421755728,1778107841000,-150.83883825,0.00035975,7]
[421755765,1778107841000,-156.0,0.00036219,30]
[421755761,1778107841000,-231.35195899,0.00036177,7]
[421755764,1778107841000,-231.35195899,0.00036218,7]
[421755799,1778107841000,-150.0,0.00036516,7]
[421755802,1778107841000,-231.35195899,0.00036541,7]
[421755812,1778107841000,-744.0,0.00036552,2]
[421755801,1778107841000,-150.0,0.00036531,7]
[421755805,1778107841000,-600.0,0.00036552,2]
[421755811,1778107841000,-600.0,0.00036552,2]
[421755804,1778107841000,-600.0,0.00036552,2]
[421755808,1778107841000,-600.0,0.00036552,2]
[421755806,1778107841000,-600.0,0.00036552,2]
[421755809,1778107841000,-600.0,0.00036552,2]
[421755807,1778107841000,-600.0,0.00036552,2]
[421755813,1778107841000,-984.86,0.00036564,10]
[421755815,1778107841000,-231.35195899,0.00036581,7]
[421755817,1778107841000,-150.0,0.00036611,7]
[421755816,1778107841000,-563.85,0.00036596,10]
[421755819,1778107841000,-231.35195899,0.00036621,7]
[421755820,1778107841000,-150.0,0.00036624,7]
[421755822,1778107841000,-151.0,0.00036639,14]
[421755824,1778107841000,-500.0,0.00036641,7]
[421755821,1778107841000,-230.6951986,0.00036632,2]
[421755814,1778107841000,-150.0,0.00036568,7]
[421755823,1778107841000,-500.0,0.00036641,2]
[421755826,1778107841000,-200268.5938555,0.00036642,2]
[421755828,1778107841000,-231.35195899,0.00036662,7]
[421755825,1778107841000,-150.0,0.00036642,7]
[421755827,1778107841000,-172.78512486,0.00036647,2]
[421755829,1778107841000,-65202.6,0.000367,7]
[421755830,1778107841000,-150.0,0.00036702,7]
[421755771,1778107841000,-201.0,0.00036235,30]
[421755803,1778107841000,-150.0,0.00036546,30]
[421755810,1778107841000,-600.0,0.00036552,2]
[421755818,1778107841000,-680.73,0.00036621,10]
[421755791,1778107841000,-150.0,0.00036419,7]
[421755769,1778107841000,-253.0,0.00036235,30]
[421755800,1778107841000,-150.0,0.0003652,7]
[421755767,1778107841000,-544.0,0.0003622,30]
[421755766,1778107841000,-166.0,0.00036219,30]
[421755773,1778107841000,-167.0,0.00036247,30]
[421755783,1778107841000,-231.35195899,0.00036339,7]
[421755784,1778107841000,-1629.43,0.00036373,10]
[421755772,1778107841000,-539.0,0.00036235,30]
[421755774,1778107841000,-150.0,0.00036248,7]
[421755776,1778107841000,-150.0,0.00036271,7]
[421755777,1778107841000,-4265.0,0.00036284,15]
[421755782,1778107841000,-150.0,0.00036339,7]
[421755775,1778107841000,-231.35195899,0.00036258,7]
[421755779,1778107841000,-150.0,0.00036299,7]
[421755780,1778107841000,-65202.6,0.000363,7]
[421755778,1778107841000,-231.35195899,0.00036298,7]
[421755793,1778107841000,-1354.0,0.00036438,5]
[421755794,1778107841000,-1000.0,0.00036438,5]
[421755781,1778107841000,-150.0,0.00036308,7]
[421755795,1778107841000,-231.35195899,0.0003646,7]
[421755785,1778107841000,-150.0,0.00036375,7]
[421755790,1778107841000,-231.35195899,0.00036419,7]
[421755797,1778107841000,-4000.0,0.00036493,60]
[421755792,1778107841000,-150.0,0.0003643,7]
[421755786,1778107841000,-231.35195899,0.00036379,7]
[421755798,1778107841000,-231.35195899,0.000365,7]
[421755788,1778107841000,-925.08,0.00036418,10]
[421755789,1778107841000,-150.0,0.00036419,7]
[421755787,1778107841000,-150.0,0.00036407,7]
[421755796,1778107841000,-2500.0,0.00036468,10]
[421755871,1778107842000,-1380.7098071,0.000371,120]
[421755877,1778107842000,-1000.0,0.00037139,2]
[421755875,1778107842000,-152.0,0.00037106,9]
[421755876,1778107842000,-150.0,0.00037117,30]
[421755873,1778107842000,-214.60306816,0.000371,7]
[421755872,1778107842000,-65202.6,0.000371,7]
[421755868,1778107842000,-150.0,0.00037086,7]
[421755865,1778107842000,-150.0,0.00037056,7]
[421755869,1778107842000,-1286.13751626,0.000371,120]
[421755874,1778107842000,-231.35195899,0.00037106,7]
[421755870,1778107842000,-1006.34383222,0.000371,120]
[421755878,1778107842000,-1000.0,0.00037139,2]
[421755867,1778107842000,-231.35195899,0.00037066,7]
[421755880,1778107842000,-1000.0,0.00037139,2]
[421755893,1778107842000,-156.0,0.00037219,30]
[421755883,1778107842000,-231.35195899,0.00037146,7]
[421755885,1778107842000,-150.0,0.0003716,7]
[421755884,1778107842000,-150.0,0.00037156,7]
[421755881,1778107842000,-1000.0,0.00037139,2]
[421755882,1778107842000,-768.0,0.00037139,2]
[421755888,1778107842000,-150.0,0.00037175,7]
[421755887,1778107842000,-53951.04840894,0.00037173,2]
[421755891,1778107842000,-150.0,0.00037197,7]
[421755879,1778107842000,-1000.0,0.00037139,2]
[421755889,1778107842000,-4265.0,0.00037177,15]
[421755890,1778107842000,-231.35195899,0.00037187,7]
[421755892,1778107842000,-189.47926865,0.000372,120]
[421755894,1778107842000,-166.0,0.00037219,30]
[421755864,1778107842000,-231.35195899,0.00037025,7]
[421755886,1778107842000,-150.0,0.00037164,7]
[421755866,1778107842000,-150.0,0.00037066,7]
[421755838,1778107842000,-150.0,0.00036775,7]
[421755854,1778107842000,-231.35195899,0.00036944,7]
[421755895,1778107842000,-544.0,0.0003722,30]
[421755837,1778107842000,-150.0,0.00036775,7]
[421755836,1778107842000,-150.0,0.00036753,7]
[421755834,1778107842000,-150.0,0.00036732,7]
[421755835,1778107842000,-231.35195899,0.00036742,7]
[421755832,1778107842000,-150.0,0.00036716,7]
[421755833,1778107842000,-4265.0,0.00036731,15]
[421755831,1778107842000,-231.35195899,0.00036702,7]
[421755839,1778107842000,-231.35195899,0.00036783,7]
[421755841,1778107842000,-471.74887901,0.00036795,2]
[421755844,1778107842000,-502.0,0.00036829,12]
[421755843,1778107842000,-231.35195899,0.00036823,7]
[421755842,1778107842000,-13329.07,0.000368,2]
[421755846,1778107842000,-150.0,0.0003684,7]
[421755860,1778107842000,-214.60306816,0.00037,7]
[421755848,1778107842000,-150.0,0.00036864,7]
[421755849,1778107842000,-231.35195899,0.00036864,7]
[421755847,1778107842000,-1724.4,0.00036841,10]
[421755851,1778107842000,-272.43,0.00036868,10]
[421755862,1778107842000,-2000.0,0.00037017,120]
[421755861,1778107842000,-150.0,0.00037012,7]
[421755863,1778107842000,-500.0,0.00037017,120]
[421755858,1778107842000,-150.0,0.00036975,7]
[421755859,1778107842000,-231.35195899,0.00036985,7]
[421755853,1778107842000,-231.35195899,0.00036904,7]
[421755855,1778107842000,-150.0,0.00036948,7]
[421755850,1778107842000,-150.0,0.00036864,7]
[421755856,1778107842000,-7204.56385615,0.00036972,2]
[421755852,1778107842000,-150.0,0.00036884,7]
[421755857,1778107842000,-150.0,0.00036975,7]
[421755845,1778107842000,-214.34,0.00036839,120]
[421755896,1778107842000,-231.35195899,0.00037227,7]
[421755840,1778107842000,-150.0,0.00036793,7]
[421755901,1778107842000,-150.0,0.00037247,7]
[421755953,1778107842000,-500.0,0.00037368,13]
[421755961,1778107842000,-500.0,0.00037368,13]
[421755952,1778107842000,-151.0,0.00037368,13]
[421755957,1778107842000,-500.0,0.00037368,13]
[421755962,1778107842000,-151.0,0.00037368,13]
[421755963,1778107842000,-151.0,0.00037368,13]
[421755959,1778107842000,-500.0,0.00037368,13]
[421755960,1778107842000,-151.0,0.00037368,13]
[421755956,1778107842000,-151.0,0.00037368,13]
[421755955,1778107842000,-500.0,0.00037368,13]
[421755958,1778107842000,-151.0,0.00037368,13]
[421755965,1778107842000,-500.0,0.00037368,13]
[421755976,1778107842000,-500.0,0.00037368,13]
[421755978,1778107842000,-500.0,0.00037368,13]
[421755951,1778107842000,-500.0,0.00037368,13]
[421755980,1778107842000,-500.0,0.00037368,13]
[421755968,1778107842000,-151.0,0.00037368,13]
[421755966,1778107842000,-151.0,0.00037368,13]
[421755986,1778107842000,-150.0,0.00037372,30]
[421755971,1778107842000,-500.0,0.00037368,13]
[421755972,1778107842000,-500.0,0.00037368,13]
[421755967,1778107842000,-500.0,0.00037368,13]
[421755969,1778107842000,-500.0,0.00037368,13]
[421755973,1778107842000,-500.0,0.00037368,13]
[421755974,1778107842000,-500.0,0.00037368,13]
[421755983,1778107842000,-500.0,0.00037368,13]
[421755985,1778107842000,-500.0,0.00037368,13]
[421755984,1778107842000,-500.0,0.00037368,13]
[421755987,1778107842000,-197.268749,0.00037375,30]
[421755900,1778107842000,-539.0,0.00037235,30]
[421755982,1778107842000,-500.0,0.00037368,13]
[421755954,1778107842000,-151.0,0.00037368,13]
[421755970,1778107842000,-500.0,0.00037368,13]
[421755949,1778107842000,-500.0,0.00037368,13]
[421755950,1778107842000,-151.0,0.00037368,13]
[421755899,1778107842000,-201.0,0.00037235,30]
[421755903,1778107842000,-231.35195899,0.00037267,7]
[421755898,1778107842000,-166.0,0.00037235,30]
[421755897,1778107842000,-253.0,0.00037235,30]
[421755902,1778107842000,-1159.74113112,0.0003726,5]
[421755904,1778107842000,-467.08943921,0.00037268,2]
[421755907,1778107842000,-2080.17592889,0.00037298,7]
[421755909,1778107842000,-2157.14243826,0.00037298,7]
[421755905,1778107842000,-150.0,0.00037272,7]
[421755915,1778107842000,-2405.55389864,0.00037298,7]
[421755913,1778107842000,-2319.72410669,0.00037298,7]
[421755923,1778107842000,-2781.82699784,0.00037298,7]
[421755921,1778107842000,-2682.57183977,0.00037298,7]
[421755925,1778107842000,-2884.75459676,0.00037298,7]
[421755911,1778107842000,-2236.95670848,0.00037298,7]
[421755919,1778107842000,-2586.85809042,0.00037298,7]
[421755947,1778107842000,-151.0,0.00037368,13]
[421755917,1778107842000,-2494.55939289,0.00037298,7]
[421755948,1778107842000,-151.0,0.00037368,13]
[421755939,1778107842000,-150.0,0.00037368,30]
[421755946,1778107842000,-7142.856,0.00037368,13]
[421755945,1778107842000,-413.61787485,0.00037368,13]
[421755935,1778107842000,-150.0,0.00037338,7]
[421755943,1778107842000,-185.21192116,0.00037368,13]
[421755941,1778107842000,-200.0,0.00037368,13]
[421755933,1778107842000,-150.0,0.00037308,7]
[421755944,1778107842000,-500.0,0.00037368,13]
[421755937,1778107842000,-231.35195899,0.00037348,7]
[421755931,1778107842000,-231.35195899,0.00037308,7]
[421755929,1778107842000,-150.0,0.00037308,7]
[421755927,1778107842000,-2991.49051684,0.00037298,7]
[421756014,1778107843000,-2521.94,0.00037534,60]
[421756013,1778107843000,-150.0,0.0003753,7]
[421756006,1778107843000,-192.0,0.000375,7]
[421756010,1778107843000,-151.0,0.00037521,2]
[421756011,1778107843000,-250.0,0.00037521,120]
[421756016,1778107843000,-150.0,0.00037574,7]
[421756009,1778107843000,-150.0,0.0003752,7]
[421756012,1778107843000,-280.86,0.00037521,120]
[421756021,1778107843000,-150.0,0.00037604,7]
[421756018,1778107843000,-231.35195899,0.0003759,7]
[421756017,1778107843000,-150.0,0.00037574,7]
[421756019,1778107843000,-150.0,0.00037596,7]
[421756020,1778107843000,-200.0,0.000376,15]
[421756022,1778107843000,-150.0,0.00037611,7]
[421756003,1778107843000,-250.0,0.000375,7]
[421756032,1778107843000,-500.0,0.00037699,2]
[421756015,1778107843000,-231.35195899,0.0003755,7]
[421756002,1778107843000,-250.0,0.000375,7]
[421755988,1778107843000,-150.0,0.0003738,7]
[421756000,1778107843000,-250.0,0.000375,7]
[421756025,1778107843000,-231.35195899,0.00037631,7]